Workbook

Sheet Menú
G4: Template para métricas mensais
H6: Preencher com o nome do Engarrafador:
G23: 2022

Sheet Informaciones iniciais
C4: Informaciones iniciales
H7: Qual é a meta total de compra de EDFs para o ano? | P7: =IF('Informaciones mensuais'!AE7="","",IF(SUM('Informaciones mensuais'!C7:Z7)<'Informaciones iniciais'!O7,"Plan incompleto, rever siguiente información: Confirmación de pedidos con el proveedor","")) -> 
H8: Qual é a meta de instalação total (novos e usados) para o ano?
H9: Qual é a % de instalação líquida definida em conjunto com a Coca-Cola com base nas instalações totais? | P9: =IF(O9>O8,"Error: parque total es menor que en el mercado","") -> 
H11: Obs: | I11: Somente solicitaremos esta informação uma vez ao ano
C18: 2022

Sheet Informaciones mensuais
C1: Preencher inconsist. e mês atual: | E1: Jan | F1: Informações mensais
C3: Análises Q1/2022 | J3: Análises Q2/2022 | Q3: Análises Q3/2022 | X3: Análises Q4/2022
C4: Template mensal | F4: Temp. trim. | J4: Template mensal | M4: Temp. trim. | Q4: Template mensal | T4: Temp. trim. | X4: Template mensal | AA4: Temp. trim.
B5: Processos 2022 | C5: Jan | D5: Fev | E5: Mar | F5: Q1/2022 | H5: Inconsistência? Caso sim, ajustar os dados do mês ou trimestre a esquerda | J5: Abr | K5: Mai | L5: Jun | M5: Q2/2022 | O5: Inconsistência? Caso sim, ajustar os dados do mês ou trimestre a esquerda | Q5: Jul | R5: Ago | S5: Set | T5: Q3/2022 | V5: Inconsistência? Caso sim, ajustar os dados do mês ou trimestre a esquerda | X5: Out | Y5: Nov | Z5: Dez | AA5: Q4/2022 | AC5: Inconsistência? Caso sim, ajustar os dados do mês ou trimestre a esquerda | AE5: Total | AG5: vs último mês preenchido | AH5: vs YTD | AI5: Alerta | AJ5: Razão | AK5: Justificativa (obrigatório somente para dados marcados como nok) | AM5: Média
B7: Pedidos confirmados com o fornecedor de EDF | H7: =IF(F7="","",IF(F7=SUM(C7:E7),"ok",IF(F7>SUM(C7:E7),F7-SUM(C7:E7),F7-SUM(C7:E7)))) ->  | O7: =IF(M7="","",IF(M7=SUM(J7:L7),"ok",IF(M7>SUM(J7:L7),M7-SUM(J7:L7),M7-SUM(J7:L7)))) ->  | AC7: =IF(AA7="","",IF(AA7=SUM(X7:Z7),"ok",IF(AA7>SUM(X7:Z7),AA7-SUM(X7:Z7),AA7-SUM(X7:Z7)))) ->  | AE7: =IF(SUM(C7:E7,J7:L7,Q7:S7,X7:Z7)=0,"",SUM(C7:E7,J7:L7,Q7:S7,X7:Z7)) -> 
B8: Plano de chegada dos EDFs comprados | H8: =IF(F8="","",IF(F8=SUM(C8:E8),"ok",IF(F8>SUM(C8:E8),F8-SUM(C8:E8),F8-SUM(C8:E8)))) ->  | O8: =IF(M8="","",IF(M8=SUM(J8:L8),"ok",IF(M8>SUM(J8:L8),M8-SUM(J8:L8),M8-SUM(J8:L8)))) ->  | AC8: =IF(AA8="","",IF(AA8=SUM(X8:Z8),"ok",IF(AA8>SUM(X8:Z8),AA8-SUM(X8:Z8),AA8-SUM(X8:Z8)))) ->  | AE8: =IF(SUM(C8:E8,J8:L8,Q8:S8,X8:Z8)=0,"",SUM(C8:E8,J8:L8,Q8:S8,X8:Z8)) -> 
A9: 1. | B9: Total de coolers (mercado + manutenção + descarte+ outros) | H9: =IF(F9="","",IF(F9=E9,"ok",IF(F9>E9,F9-E9,F9-E9))) ->  | O9: =IF(M9="","",IF(M9=L9,"ok",IF(M9>L9,M9-L9,M9-L9))) ->  | V9: =IF(T9="","",IF(T9=S9,"ok",IF(T9>S9,T9-S9,T9-S9))) ->  | AC9: =IF(AA9="","",IF(AA9=Z9,"ok",IF(AA9>Z9,AA9-Z9,AA9-Z9))) ->  | AG9: =IFERROR(ROUND(INDIRECT(Alertas!$D$1&CELL("lin",AL9))/INDIRECT(Alertas!$D$2&CELL("lin",AL9))-1,2),"") ->  | AH9: =IF(AG9<0,"<",">")&" último mês" -> > último mês | AI9: =IFERROR(VLOOKUP(ABS(AG9),Alertas!$A$9:$C$11,3,1),"ok") -> ok | AJ9: =IF(AI9="ok","",AG9*100&"% "&AH9) -> 
A10: 2. | B10: Total de coolers no mercado | H10: =IF(F10="","",IF(F10=E10,"ok",IF(F10>E10,F10-E10,F10-E10))) ->  | O10: =IF(M10="","",IF(M10=L10,"ok",IF(M10>L10,M10-L10,M10-L10))) ->  | V10: =IF(T10="","",IF(T10=S10,"ok",IF(T10>S10,T10-S10,T10-S10))) ->  | AC10: =IF(AA10="","",IF(AA10=Z10,"ok",IF(AA10>Z10,AA10-Z10,AA10-Z10))) ->  | AG10: =IFERROR(ROUND(INDIRECT(Alertas!$D$1&CELL("lin",AL10))/INDIRECT(Alertas!$D$2&CELL("lin",AL10))-1,2),"") ->  | AH10: =IF(AG10<0,"<",">")&" último mês" -> > último mês | AI10: =IFERROR(VLOOKUP(ABS(AG10),Alertas!$D$9:$F$11,3,1),"ok") -> ok | AJ10: =IF(AI10="ok","",AG10*100&"% "&AH10) -> 
A11: 3. | B11: Chegadas confirmadas dos EDFs ao bottler | H11: =IF(F11="","",IF(F11=SUM(C11:E11),"ok",IF(F11>SUM(C11:E11),F11-SUM(C11:E11),F11-SUM(C11:E11)))) ->  | O11: =IF(M11="","",IF(M11=SUM(J11:L11),"ok",IF(M11>SUM(J11:L11),M11-SUM(J11:L11),M11-SUM(J11:L11)))) ->  | V11: =IF(T11="","",IF(T11=SUM(Q11:S11),"ok",IF(T11>SUM(Q11:S11),T11-SUM(Q11:S11),T11-SUM(Q11:S11)))) ->  | AC11: =IF(AA11="","",IF(AA11=SUM(X11:Z11),"ok",IF(AA11>SUM(X11:Z11),AA11-SUM(X11:Z11),AA11-SUM(X11:Z11)))) ->  | AE11: =IF(SUM(C11:E11,J11:L11,Q11:S11,X11:Z11)=0,"",SUM(C11:E11,J11:L11,Q11:S11,X11:Z11)) ->  | AG11: =IF(AH11<0,"<",">")&" plano de chegadas YTD" -> > plano de chegadas YTD | AH11: =IFERROR(ROUND(AE11/VLOOKUP(Alertas!$C$1,Alertas!$N$8:$S$19,5,0)-1,2),"") ->  | AI11: =IFERROR(VLOOKUP(ABS(AG11),Alertas!G9:I11,3,1),"ok") -> ok | AJ11: =IF(AI11="ok","",AH11*100&"% "&AG11) ->  | AM11: =IFERROR(IF(AVERAGE(C11:E11,J11:L11,Q11:S11,X11:Z11)=0,"",AVERAGE(C11:E11,J11:L11,Q11:S11,X11:Z11)),"") -> 
A12: 4. | B12: Instalação de EDFs total (1ª instalação + EDF adicional + *troca de EDFs + eventos + outros) | H12: =IF(F12="","",IF(F12=SUM(C12:E12),"ok",IF(F12>SUM(C12:E12),F12-SUM(C12:E12),F12-SUM(C12:E12)))) ->  | O12: =IF(M12="","",IF(M12=SUM(J12:L12),"ok",IF(M12>SUM(J12:L12),M12-SUM(J12:L12),M12-SUM(J12:L12)))) ->  | V12: =IF(T12="","",IF(T12=SUM(Q12:S12),"ok",IF(T12>SUM(Q12:S12),T12-SUM(Q12:S12),T12-SUM(Q12:S12)))) ->  | AC12: =IF(AA12="","",IF(AA12=SUM(X12:Z12),"ok",IF(AA12>SUM(X12:Z12),AA12-SUM(X12:Z12),AA12-SUM(X12:Z12)))) ->  | AE12: =IF(SUM(C12:E12,J12:L12,Q12:S12,X12:Z12)=0,"",SUM(C12:E12,J12:L12,Q12:S12,X12:Z12)) ->  | AG12: =IF(AH12<0,"<",">")&" média dos meses" -> > média dos meses | AH12: =IFERROR(ROUND(INDIRECT(Alertas!$D$1&CELL("lin",AL12))/AM12-1,2),"") ->  | AI12: =IFERROR(VLOOKUP(ABS(AH12),Alertas!$J$9:$L$11,3,1),"ok") -> ok | AJ12: =IF(AI12="ok","",AH12*100&"% "&AG12) ->  | AM12: =IFERROR(IF(AVERAGE(C12:E12,J12:L12,Q12:S12,X12:Z12)=0,"",AVERAGE(C12:E12,J12:L12,Q12:S12,X12:Z12)),"") -> 
A13: 5. | B13: Recolhimento total de EDFs (Baixa performance + venda zero + cliente fechado, fechando ou com cooler próprios + invasão + *Troca de EDFs + eventos + outros) | H13: =IF(F13="","",IF(F13=SUM(C13:E13),"ok",IF(F13>SUM(C13:E13),F13-SUM(C13:E13),F13-SUM(C13:E13)))) ->  | O13: =IF(M13="","",IF(M13=SUM(J13:L13),"ok",IF(M13>SUM(J13:L13),M13-SUM(J13:L13),M13-SUM(J13:L13)))) ->  | V13: =IF(T13="","",IF(T13=SUM(Q13:S13),"ok",IF(T13>SUM(Q13:S13),T13-SUM(Q13:S13),T13-SUM(Q13:S13)))) ->  | AC13: =IF(AA13="","",IF(AA13=SUM(X13:Z13),"ok",IF(AA13>SUM(X13:Z13),AA13-SUM(X13:Z13),AA13-SUM(X13:Z13)))) ->  | AE13: =IF(SUM(C13:E13,J13:L13,Q13:S13,X13:Z13)=0,"",SUM(C13:E13,J13:L13,Q13:S13,X13:Z13)) ->  | AG13: =IF(AH13<0,"<",">")&" média dos meses" -> > média dos meses | AH13: =IFERROR(ROUND(INDIRECT(Alertas!$D$1&CELL("lin",AL13))/AM13-1,2),"") ->  | AI13: =IFERROR(VLOOKUP(ABS(AH13),Alertas!$A$14:$C$16,3,1),"ok") -> ok | AJ13: =IF(AI13="ok","",AH13*100&"% "&AG13) -> 
A14: 6. | B14: Nº de EDFs no mercado com venda zero 30 dias ou mais | H14: =IF(F14="","",IF(F14=E14,"ok",IF(F14>E14,F14-E14,F14-E14))) ->  | O14: =IF(M14="","",IF(M14=L14,"ok",IF(M14>L14,M14-L14,M14-L14))) ->  | V14: =IF(T14="","",IF(T14=S14,"ok",IF(T14>S14,T14-S14,T14-S14))) ->  | AC14: =IF(AA14="","",IF(AA14=Z14,"ok",IF(AA14>Z14,AA14-Z14,AA14-Z14))) ->  | AG14: =IFERROR(ROUND(INDIRECT(Alertas!$D$1&CELL("lin",AL14))/INDIRECT(Alertas!$D$2&CELL("lin",AL14))-1,2),"") ->  | AH14: =IF(AG14<0,"<",">")&" último mês" -> > último mês | AI14: =IFERROR(VLOOKUP(ABS(AG14),Alertas!$D$14:$F$16,3,1),"ok") -> ok | AJ14: =IF(AI14="ok","",AG14*100&"% "&AH14) -> 
A15: 7. | B15: Nº de EDFs com conectividade e com informação atualizada nos últimos 30 dias | H15: =IF(F15="","",IF(F15=E15,"ok",IF(F15>E15,F15-E15,F15-E15))) ->  | O15: =IF(M15="","",IF(M15=L15,"ok",IF(M15>L15,M15-L15,M15-L15))) ->  | V15: =IF(T15="","",IF(T15=S15,"ok",IF(T15>S15,T15-S15,T15-S15))) ->  | AC15: =IF(AA15="","",IF(AA15=Z15,"ok",IF(AA15>Z15,AA15-Z15,AA15-Z15))) ->  | AG15: =IFERROR(ROUND(INDIRECT(Alertas!$D$1&CELL("lin",AL15))/INDIRECT(Alertas!$D$2&CELL("lin",AL15))-1,2),"") ->  | AH15: =IF(AG15<0,"<",">")&" último mês" -> > último mês | AI15: =IFERROR(VLOOKUP(ABS(AG15),Alertas!$G$14:$I$16,3,1),"ok") -> ok | AJ15: =IF(AI15="ok","",AG15*100&"% "&AH15) -> 
A17: IMPORTANTE
A18: * Troca de EDFs são trocas comerciais (upsize, downsize de portas ou similares) e trocas técnicas (necessidade diagnosticada pelo técnico)
A19: . Troca de EDFs contabilizam tanto em recolhimento como em instalação porque a troca de um EDF prevê seu recolhimento para a instalação de outro em seu lugar.
B21: Legenda:
B22: Preencha todo o plano anual
B23: Preencha os dados mês a mês (concluído)

Sheet Alertas (hidden)
A1: Selecione o mês atual | C1: Dez | D1: =VLOOKUP(C1,$N$8:$O$19,2,0) -> z
C2: =VLOOKUP(C1,$N$8:$P$20,3,0) -> Nov | D2: =VLOOKUP(C2,$P$9:$Q$20,2,0) -> y
R7: Plan de chegadas YTD | S7: EDFs descartadas no último trimestre
A8: Total de coolers | D8: Total de coolers no mercado | G8: Chegadas confirmadas dos EDFs ao bottler | J8: Instalação de EDFs total | N8: Jan | O8: c | R8: ='Informaciones mensuais'!C8 -> 0
A9: 0 | B9: 0.05 | C9: ok | D9: 0 | E9: 0.05 | F9: ok | G9: 0 | H9: 0.1 | I9: ok | J9: 0 | K9: 0.1 | L9: ok | N9: Fev | O9: d | P9: Jan | Q9: c | R9: ='Informaciones mensuais'!C8+'Informaciones mensuais'!D8 -> 0
A10: =B9+0.0000001 -> 0.0500001 | B10: 0.1 | C10: Atención | D10: =E9+0.0000001 -> 0.0500001 | E10: 0.1 | F10: Atención | G10: =H9+0.0000001 -> 0.1000001 | H10: 0.2 | I10: Atención | J10: =K9+0.0000001 -> 0.1000001 | K10: 0.2 | L10: Atención | N10: Mar | O10: e | P10: Fev | Q10: d | R10: ='Informaciones mensuais'!C8+'Informaciones mensuais'!D8+'Informaciones mensuais'!E8 -> 0 | S10: f16
A11: =B10+0.0000001 -> 0.1000001 | B11: 1 | C11: nok | D11: =E10+0.0000001 -> 0.1000001 | E11: 1 | F11: nok | G11: =H10+0.0000001 -> 0.2000001 | H11: 1 | I11: nok | J11: =K10+0.0000001 -> 0.2000001 | K11: 1 | L11: nok | N11: Abr | O11: j | P11: Mar | Q11: e | R11: ='Informaciones mensuais'!C8+'Informaciones mensuais'!D8+'Informaciones mensuais'!E8+'Informaciones mensuais'!J8 -> 0 | S11: f16
N12: Mai | O12: k | P12: Abr | Q12: j | R12: ='Informaciones mensuais'!C8+'Informaciones mensuais'!D8+'Informaciones mensuais'!E8+'Informaciones mensuais'!J8+'Informaciones mensuais'!K8 -> 0 | S12: f16
A13: Recolhimento total de EDFs | D13: Nº de EDFs no mercado com venda zero 30 dias ou mais | G13: Nº de EDFs con conectividad y con información actualizada en los últimos 30 días | J13: Nº de EDFs descartados en el mês | N13: Jun | O13: l | P13: Mai | Q13: k | R13: ='Informaciones mensuais'!C8+'Informaciones mensuais'!D8+'Informaciones mensuais'!E8+'Informaciones mensuais'!J8+'Informaciones mensuais'!K8+'Informaciones mensuais'!L8 -> 0 | S13: m16
A14: 0 | B14: 0.1 | C14: ok | D14: 0 | E14: 0.05 | F14: ok | G14: 0 | H14: 0.5 | I14: ok | J14: 0 | K14: 0.03 | L14: ok | N14: Jul | O14: q | P14: Jun | Q14: l | R14: ='Informaciones mensuais'!C8+'Informaciones mensuais'!D8+'Informaciones mensuais'!E8+'Informaciones mensuais'!J8+'Informaciones mensuais'!K8+'Informaciones mensuais'!L8+'Informaciones mensuais'!Q8 -> 0 | S14: m16
A15: =B14+0.0000001 -> 0.1000001 | B15: 0.2 | C15: Atención | D15: =E14+0.0000001 -> 0.0500001 | E15: 0.1 | F15: Atención | G15: =H14+0.0000001 -> 0.5000001 | H15: 1 | I15: Atención | J15: =K14+0.0000001 -> 0.0300001 | K15: 0.05 | L15: Atención | N15: Ago | O15: r | P15: Jul | Q15: q | R15: ='Informaciones mensuais'!C8+'Informaciones mensuais'!D8+'Informaciones mensuais'!E8+'Informaciones mensuais'!J8+'Informaciones mensuais'!K8+'Informaciones mensuais'!L8+'Informaciones mensuais'!Q8+'Informaciones mensuais'!R8 -> 0 | S15: m16
A16: =B15+0.0000001 -> 0.2000001 | B16: 1 | C16: nok | D16: =E15+0.0000001 -> 0.1000001 | E16: 1 | F16: nok | G16: =H15+0.0000001 -> 1.0000001 | H16: 10 | I16: nok | J16: =K15+0.0000001 -> 0.0500001 | K16: 10 | L16: nok | N16: Set | O16: s | P16: Ago | Q16: r | R16: ='Informaciones mensuais'!C8+'Informaciones mensuais'!D8+'Informaciones mensuais'!E8+'Informaciones mensuais'!J8+'Informaciones mensuais'!K8+'Informaciones mensuais'!L8+'Informaciones mensuais'!Q8+'Informaciones mensuais'!R8+'Informaciones mensuais'!S8 -> 0 | S16: t16
N17: Out | O17: x | P17: Set | Q17: s | R17: ='Informaciones mensuais'!C8+'Informaciones mensuais'!D8+'Informaciones mensuais'!E8+'Informaciones mensuais'!J8+'Informaciones mensuais'!K8+'Informaciones mensuais'!L8+'Informaciones mensuais'!Q8+'Informaciones mensuais'!R8+'Informaciones mensuais'!S8+'Informaciones mensuais'!W8 -> 0 | S17: t16
N18: Nov | O18: y | P18: Out | Q18: x | R18: ='Informaciones mensuais'!C8+'Informaciones mensuais'!D8+'Informaciones mensuais'!E8+'Informaciones mensuais'!J8+'Informaciones mensuais'!K8+'Informaciones mensuais'!L8+'Informaciones mensuais'!Q8+'Informaciones mensuais'!R8+'Informaciones mensuais'!S8+'Informaciones mensuais'!W8+'Informaciones mensuais'!Y8 -> 0 | S18: t16
N19: Dez | O19: z | P19: Nov | Q19: y | R19: ='Informaciones mensuais'!C8+'Informaciones mensuais'!D8+'Informaciones mensuais'!E8+'Informaciones mensuais'!J8+'Informaciones mensuais'!K8+'Informaciones mensuais'!L8+'Informaciones mensuais'!Q8+'Informaciones mensuais'!R8+'Informaciones mensuais'!S8+'Informaciones mensuais'!W8+'Informaciones mensuais'!Y8+'Informaciones mensuais'!Z8 -> 0 | S19: a16
P20: Dez | Q20: z

Sheet Original (hidden)
C1: Llenar inconsist. y mes actual: | E1: ='Informaciones mensuais'!E1 -> Jan | F1: Informaciones mensuales
C3: Análisis Q1/2021 | J3: Análisis Q2/2021 | Q3: Análisis Q3/2021 | X3: Análisis Q4/2021
C4: Template mensual | F4: Temp. trim. | J4: Template mensual | M4: Temp. trim. | Q4: Template mensual | T4: Temp. trim. | X4: Template mensual | AA4: Temp. trim.
B5: Procesos 2021 | C5: Ene | D5: Feb | E5: Mar | F5: Q1/2021 | H5: Inconsistencia? Coso sí, ajustar los datos del mês o trimestre a la esquierda | J5: Abr | K5: May | L5: Jun | M5: Q2/2021 | O5: Inconsistencia? Coso sí, ajustar los datos del mês o trimestre a la esquierda | Q5: Jul | R5: Ago | S5: Sep | T5: Q3/2021 | V5: Inconsistencia? Coso sí, ajustar los datos del mês o trimestre a la esquierda | X5: Oct | Y5: Nov | Z5: Dic | AA5: Q4/2021 | AC5: Inconsistencia? Coso sí, ajustar los datos del mês o trimestre a la esquierda | AE5: Total | AG5: vs último mês preenchido | AH5: vs promedio YTD | AI5: Alerta | AJ5: Justificación (confirman que los datos señalados como rojo son correctos)
B7: Pedidos confirmados con el proveedor de cooler | C7: 12554 | E7: 174 | F7: 12748 | H7: =IF(F7="","",IF(F7=SUM(C7:E7),"ok",IF(F7>SUM(C7:E7),F7-SUM(C7:E7),F7-SUM(C7:E7)))) -> 20 | M7: 0 | O7: =IF(M7="","",IF(M7=SUM(J7:L7),"ok",IF(M7>SUM(J7:L7),M7-SUM(J7:L7),M7-SUM(J7:L7)))) -> ok | V7: =IF(T7="","",IF(T7=SUM(Q7:S7),"ok",IF(T7>SUM(Q7:S7),T7-SUM(Q7:S7),T7-SUM(Q7:S7)))) ->  | AC7: =IF(AA7="","",IF(AA7=SUM(X7:Z7),"ok",IF(AA7>SUM(X7:Z7),AA7-SUM(X7:Z7),AA7-SUM(X7:Z7)))) ->  | AE7: =IF(SUM(C7:E7,J7:L7,Q7:S7,X7:Z7)=0,"",SUM(C7:E7,J7:L7,Q7:S7,X7:Z7)) -> 12728
B8: Plan de llegada de los coolers comprados | C8: 198 | D8: 1478 | E8: 3182 | F8: 4858 | H8: =IF(F8="","",IF(F8=SUM(C8:E8),"ok",IF(F8>SUM(C8:E8),F8-SUM(C8:E8),F8-SUM(C8:E8)))) -> ok | J8: 2620 | K8: 2999 | L8: 1346 | M8: 6965 | O8: =IF(M8="","",IF(M8=SUM(J8:L8),"ok",IF(M8>SUM(J8:L8),M8-SUM(J8:L8),M8-SUM(J8:L8)))) -> ok | Q8: 150 | R8: 176 | V8: =IF(T8="","",IF(T8=SUM(Q8:S8),"ok",IF(T8>SUM(Q8:S8),T8-SUM(Q8:S8),T8-SUM(Q8:S8)))) ->  | AC8: =IF(AA8="","",IF(AA8=SUM(X8:Z8),"ok",IF(AA8>SUM(X8:Z8),AA8-SUM(X8:Z8),AA8-SUM(X8:Z8)))) ->  | AE8: =IF(SUM(C8:E8,J8:L8,Q8:S8,X8:Z8)=0,"",SUM(C8:E8,J8:L8,Q8:S8,X8:Z8)) -> 12149
A9: 1. | B9: Total de coolers (mercado + mantenimiento + descarte+ otros)" | E9: 111488 | F9: 111488 | H9: =IF(F9="","",IF(F9=E9,"ok",IF(F9>E9,F9-E9,F9-E9))) -> ok | J9: 112755 | K9: 113713 | L9: 109369 | M9: 109369 | O9: =IF(M9="","",IF(M9=L9,"ok",IF(M9>L9,M9-L9,M9-L9))) -> ok | V9: =IF(T9="","",IF(T9=S9,"ok",IF(T9>S9,T9-S9,T9-S9))) ->  | AC9: =IF(AA9="","",IF(AA9=Z9,"ok",IF(AA9>Z9,AA9-Z9,AA9-Z9))) ->  | AG9: =IFERROR(K9/E9-1,"") -> 0.01995730482 | AI9: =ABS(AG9) -> 0.01995730482
A10: 2. | B10: Total de coolers en el mercado | E10: 104510 | F10: 104510 | H10: =IF(F10="","",IF(F10=E10,"ok",IF(F10>E10,F10-E10,F10-E10))) -> ok | J10: 105016 | K10: 105390 | L10: 101275 | M10: 101275 | O10: =IF(M10="","",IF(M10=L10,"ok",IF(M10>L10,M10-L10,M10-L10))) -> ok | V10: =IF(T10="","",IF(T10=S10,"ok",IF(T10>S10,T10-S10,T10-S10))) ->  | AC10: =IF(AA10="","",IF(AA10=Z10,"ok",IF(AA10>Z10,AA10-Z10,AA10-Z10))) ->  | AG10: =IFERROR(K10/E10-1,"") -> 0.008420246866 | AI10: =ABS(AG10) -> 0.008420246866
A11: 3. | B11: Llegadas confirmadas de los coolers al bottler | C11: 175 | D11: 281 | E11: 1532 | F11: 1813 | H11: =IF(F11="","",IF(F11=SUM(C11:E11),"ok",IF(F11>SUM(C11:E11),F11-SUM(C11:E11),F11-SUM(C11:E11)))) -> ok | J11: 1267 | K11: 633 | L11: 4287 | M11: 6187 | O11: =IF(M11="","",IF(M11=SUM(J11:L11),"ok",IF(M11>SUM(J11:L11),M11-SUM(J11:L11),M11-SUM(J11:L11)))) -> ok | V11: =IF(T11="","",IF(T11=SUM(Q11:S11),"ok",IF(T11>SUM(Q11:S11),T11-SUM(Q11:S11),T11-SUM(Q11:S11)))) ->  | AC11: =IF(AA11="","",IF(AA11=SUM(X11:Z11),"ok",IF(AA11>SUM(X11:Z11),AA11-SUM(X11:Z11),AA11-SUM(X11:Z11)))) ->  | AE11: =IF(SUM(C11:E11,J11:L11,Q11:S11,X11:Z11)=0,"",SUM(C11:E11,J11:L11,Q11:S11,X11:Z11)) -> 8000 | AH11: =SUM(C11:K11)/SUM(C8:K8)-1 -> -0.6396478644 | AI11: =ABS(AH11) -> 0.6396478644
A12: 4. | B12: Instalación equipos total (1ª instalación + equipo adicional + *cambio de equipos + eventos + otros) | C12: 630 | D12: 744 | E12: 1595 | F12: 2177 | H12: =IF(F12="","",IF(F12=SUM(C12:E12),"ok",IF(F12>SUM(C12:E12),F12-SUM(C12:E12),F12-SUM(C12:E12)))) -> -162 | J12: 1712 | K12: 1273 | L12: 351 | M12: 3336 | O12: =IF(M12="","",IF(M12=SUM(J12:L12),"ok",IF(M12>SUM(J12:L12),M12-SUM(J12:L12),M12-SUM(J12:L12)))) -> ok | V12: =IF(T12="","",IF(T12=SUM(Q12:S12),"ok",IF(T12>SUM(Q12:S12),T12-SUM(Q12:S12),T12-SUM(Q12:S12)))) ->  | AC12: =IF(AA12="","",IF(AA12=SUM(X12:Z12),"ok",IF(AA12>SUM(X12:Z12),AA12-SUM(X12:Z12),AA12-SUM(X12:Z12)))) ->  | AE12: =IF(SUM(C12:E12,J12:L12,Q12:S12,X12:Z12)=0,"",SUM(C12:E12,J12:L12,Q12:S12,X12:Z12)) -> 5675 | AG12: =IFERROR(K12/J12-1,"") -> -0.2564252336 | AH12: =IFERROR(K12/AVERAGE(C12:Z12)-1,"") -> -0.07636495556 | AI12: =(ABS(AG12)+ABS(AH12))/2 -> 0.1663950946
A13: 5. | B13: Retiro total de equipos del mercado (Baja performance + venta cero + cliente cerrado, cerrando o con cooler proprio + contaminación + *cambio de equipos + eventos + otros) | C13: 374 | D13: 387 | E13: 924 | F13: 766 | H13: =IF(F13="","",IF(F13=SUM(C13:E13),"ok",IF(F13>SUM(C13:E13),F13-SUM(C13:E13),F13-SUM(C13:E13)))) -> -545 | J13: 1224 | K13: 901 | L13: 2052 | M13: 2052 | O13: =IF(M13="","",IF(M13=SUM(J13:L13),"ok",IF(M13>SUM(J13:L13),M13-SUM(J13:L13),M13-SUM(J13:L13)))) -> -2125 | V13: =IF(T13="","",IF(T13=SUM(Q13:S13),"ok",IF(T13>SUM(Q13:S13),T13-SUM(Q13:S13),T13-SUM(Q13:S13)))) ->  | AC13: =IF(AA13="","",IF(AA13=SUM(X13:Z13),"ok",IF(AA13>SUM(X13:Z13),AA13-SUM(X13:Z13),AA13-SUM(X13:Z13)))) ->  | AE13: =IF(SUM(C13:E13,J13:L13,Q13:S13,X13:Z13)=0,"",SUM(C13:E13,J13:L13,Q13:S13,X13:Z13)) -> 5488 | AG13: =IFERROR(K13/J13-1,"") -> -0.2638888889 | AH13: =IFERROR(K13/AVERAGE(C13:Z13)-1,"") -> 0.4387863733 | AI13: =(ABS(AG13)+ABS(AH13))/2 -> 0.3513376311
A14: 6. | B14: Nº de coolers en el mercado con venta cero de 30 días o más | C14: 5.471 | D14: 6276 | E14: 12172 | F14: 12172 | H14: =IF(F14="","",IF(F14=E14,"ok",IF(F14>E14,F14-E14,F14-E14))) -> ok | J14: 12043 | K14: 13084 | L14: 12607 | M14: 12607 | O14: =IF(M14="","",IF(M14=L14,"ok",IF(M14>L14,M14-L14,M14-L14))) -> ok | V14: =IF(T14="","",IF(T14=S14,"ok",IF(T14>S14,T14-S14,T14-S14))) ->  | AC14: =IF(AA14="","",IF(AA14=Z14,"ok",IF(AA14>Z14,AA14-Z14,AA14-Z14))) ->  | AG14: =IFERROR(K14/J14-1,"") -> 0.08644025575 | AH14: =IFERROR(K14/AVERAGE(C14:Z14)-1,"") -> 0.1312607305 | AI14: =(ABS(AG14)+ABS(AH14))/2 -> 0.1088504931
A15: 7. | B15: Nº de EDFs con conectividad y con información actualizada en los últimos 30 días | C15: 223 | D15: 144 | E15: 110 | F15: 110 | H15: =IF(F15="","",IF(F15=E15,"ok",IF(F15>E15,F15-E15,F15-E15))) -> ok | J15: 149 | K15: 260 | L15: 95 | M15: 95 | O15: =IF(M15="","",IF(M15=L15,"ok",IF(M15>L15,M15-L15,M15-L15))) -> ok | V15: =IF(T15="","",IF(T15=S15,"ok",IF(T15>S15,T15-S15,T15-S15))) ->  | AC15: =IF(AA15="","",IF(AA15=Z15,"ok",IF(AA15>Z15,AA15-Z15,AA15-Z15))) ->  | AG15: =IFERROR(K15/J15-1,"") -> 0.744966443 | AH15: =IFERROR(K15/AVERAGE(C15:Z15)-1,"") -> 0.7537942664 | AI15: =(ABS(AG15)+ABS(AH15))/2 -> 0.7493803547
A16: 8. | B16: Nº de EDFs descartados en el mes | C16: 756 | D16: 0 | E16: 307 | F16: 1063 | H16: =IF(F16="","",IF(F16=SUM(C16:E16),"ok",IF(F16>SUM(C16:E16),F16-SUM(C16:E16),F16-SUM(C16:E16)))) -> ok | J16: 0 | K16: 0 | L16: 952 | M16: 952 | O16: =IF(M16="","",IF(M16=SUM(J16:L16),"ok",IF(M16>SUM(J16:L16),M16-SUM(J16:L16),M16-SUM(J16:L16)))) -> ok | V16: =IF(T16="","",IF(T16=SUM(Q16:S16),"ok",IF(T16>SUM(Q16:S16),T16-SUM(Q16:S16),T16-SUM(Q16:S16)))) ->  | AC16: =IF(AA16="","",IF(AA16=SUM(X16:Z16),"ok",IF(AA16>SUM(X16:Z16),AA16-SUM(X16:Z16),AA16-SUM(X16:Z16)))) ->  | AE16: =IF(SUM(C16:E16,J16:L16,Q16:S16,X16:Z16)=0,"",SUM(C16:E16,J16:L16,Q16:S16,X16:Z16)) -> 2015 | AG16: =IFERROR(K16/J16-1,"") ->  | AH16: =IFERROR(K16/AVERAGE(C16:Z16)-1,"") -> -1 | AI16: =(ABS(AG16)+ABS(AH16))/2 -> 
A18: IMPORTANTE
A19: * Cambio de equipos son cambios comerciales (upsize, downsize de puertas o similares) y cambios técnicos (necesidad diagnosticada por el técnico)
A20: . Cambio de equipos contabilizan tanto en retiro como en instalación porque el cambio de un equipo prevé su retiro para la instalación de otro en su lugar.
B22: Leyenda:
B23: Solo solicitaremos esta información una vez al año (planeado)
B24: Complete los datos mes a mes (realizado)

Sheet Comparativo (hidden)
C1: Llenar inconsist. y mes actual: | E1: =Original!período_selecionado -> Jan | F1: Informaciones mensuales
C3: Análisis Q1/2021 | J3: Análisis Q2/2021 | Q3: Análisis Q3/2021 | X3: Análisis Q4/2021
C4: Template mensual | F4: Temp. trim. | J4: Template mensual | M4: Temp. trim. | Q4: Template mensual | T4: Temp. trim. | X4: Template mensual | AA4: Temp. trim.
B5: Procesos 2021 | C5: Ene | D5: Feb | E5: Mar | F5: Q1/2021 | H5: Inconsistencia? Coso sí, ajustar los datos del mês o trimestre a la esquierda | J5: Abr | K5: May | L5: Jun | M5: Q2/2021 | O5: Inconsistencia? Coso sí, ajustar los datos del mês o trimestre a la esquierda | Q5: Jul | R5: Ago | S5: Sep | T5: Q3/2021 | V5: Inconsistencia? Coso sí, ajustar los datos del mês o trimestre a la esquierda | X5: Oct | Y5: Nov | Z5: Dic | AA5: Q4/2021 | AC5: Inconsistencia? Coso sí, ajustar los datos del mês o trimestre a la esquierda | AE5: Total | AG5: vs último mês preenchido | AH5: vs promedio YTD | AI5: Alerta | AJ5: Justificación (confirman que los datos señalados como rojo son correctos)
B7: Pedidos confirmados con el proveedor de cooler | C7: ='Informaciones mensuais'!C7=Original!C7 -> FALSE | D7: ='Informaciones mensuais'!D7=Original!D7 -> TRUE | E7: ='Informaciones mensuais'!E7=Original!E7 -> FALSE | F7: ='Informaciones mensuais'!F7=Original!F7 -> FALSE | J7: ='Informaciones mensuais'!J7=Original!J7 -> TRUE | K7: ='Informaciones mensuais'!K7=Original!K7 -> TRUE | L7: ='Informaciones mensuais'!L7=Original!L7 -> TRUE | M7: ='Informaciones mensuais'!M7=Original!M7 -> TRUE | Q7: ='Informaciones mensuais'!Q7=Original!Q7 -> TRUE | R7: ='Informaciones mensuais'!R7=Original!R7 -> TRUE | S7: ='Informaciones mensuais'!S7=Original!S7 -> TRUE | T7: ='Informaciones mensuais'!T7=Original!T7 -> TRUE | X7: ='Informaciones mensuais'!X7=Original!X7 -> TRUE | Y7: ='Informaciones mensuais'!Y7=Original!Y7 -> TRUE | Z7: ='Informaciones mensuais'!Z7=Original!Z7 -> TRUE | AA7: ='Informaciones mensuais'!AA7=Original!AA7 -> TRUE | AE7: =IF(SUM(C7:E7,J7:L7,Q7:S7,X7:Z7)=0,"",SUM(C7:E7,J7:L7,Q7:S7,X7:Z7)) -> 
B8: Plan de llegada de los coolers comprados | C8: ='Informaciones mensuais'!C8=Original!C8 -> FALSE | D8: ='Informaciones mensuais'!D8=Original!D8 -> FALSE | E8: ='Informaciones mensuais'!E8=Original!E8 -> FALSE | F8: ='Informaciones mensuais'!F8=Original!F8 -> FALSE | J8: ='Informaciones mensuais'!J8=Original!J8 -> FALSE | K8: ='Informaciones mensuais'!K8=Original!K8 -> FALSE | L8: ='Informaciones mensuais'!L8=Original!L8 -> FALSE | M8: ='Informaciones mensuais'!M8=Original!M8 -> FALSE | Q8: ='Informaciones mensuais'!Q8=Original!Q8 -> FALSE | R8: ='Informaciones mensuais'!R8=Original!R8 -> FALSE | S8: ='Informaciones mensuais'!S8=Original!S8 -> TRUE | T8: ='Informaciones mensuais'!T8=Original!T8 -> TRUE | X8: ='Informaciones mensuais'!X8=Original!X8 -> TRUE | Y8: ='Informaciones mensuais'!Y8=Original!Y8 -> TRUE | Z8: ='Informaciones mensuais'!Z8=Original!Z8 -> TRUE | AA8: ='Informaciones mensuais'!AA8=Original!AA8 -> TRUE | AE8: =IF(SUM(C8:E8,J8:L8,Q8:S8,X8:Z8)=0,"",SUM(C8:E8,J8:L8,Q8:S8,X8:Z8)) -> 
A9: 1. | B9: Total de coolers (mercado + mantenimiento + descarte+ otros)" | C9: ='Informaciones mensuais'!C9=Original!C9 -> TRUE | D9: ='Informaciones mensuais'!D9=Original!D9 -> TRUE | E9: ='Informaciones mensuais'!E9=Original!E9 -> FALSE | F9: ='Informaciones mensuais'!F9=Original!F9 -> FALSE | J9: ='Informaciones mensuais'!J9=Original!J9 -> FALSE | K9: ='Informaciones mensuais'!K9=Original!K9 -> FALSE | L9: ='Informaciones mensuais'!L9=Original!L9 -> FALSE | M9: ='Informaciones mensuais'!M9=Original!M9 -> FALSE | Q9: ='Informaciones mensuais'!Q9=Original!Q9 -> TRUE | R9: ='Informaciones mensuais'!R9=Original!R9 -> TRUE | S9: ='Informaciones mensuais'!S9=Original!S9 -> TRUE | T9: ='Informaciones mensuais'!T9=Original!T9 -> TRUE | X9: ='Informaciones mensuais'!X9=Original!X9 -> TRUE | Y9: ='Informaciones mensuais'!Y9=Original!Y9 -> TRUE | Z9: ='Informaciones mensuais'!Z9=Original!Z9 -> TRUE | AA9: ='Informaciones mensuais'!AA9=Original!AA9 -> TRUE | AG9: =IFERROR(K9/E9-1,"") ->  | AI9: =ABS(AG9) -> 
A10: 2. | B10: Total de coolers en el mercado | C10: ='Informaciones mensuais'!C10=Original!C10 -> TRUE | D10: ='Informaciones mensuais'!D10=Original!D10 -> TRUE | E10: ='Informaciones mensuais'!E10=Original!E10 -> FALSE | F10: ='Informaciones mensuais'!F10=Original!F10 -> FALSE | J10: ='Informaciones mensuais'!J10=Original!J10 -> FALSE | K10: ='Informaciones mensuais'!K10=Original!K10 -> FALSE | L10: ='Informaciones mensuais'!L10=Original!L10 -> FALSE | M10: ='Informaciones mensuais'!M10=Original!M10 -> FALSE | Q10: =#REF!=Original!Q10 ->  | R10: ='Informaciones mensuais'!Q10=Original!R10 -> TRUE | S10: ='Informaciones mensuais'!S10=Original!S10 -> TRUE | T10: ='Informaciones mensuais'!T10=Original!T10 -> TRUE | X10: ='Informaciones mensuais'!X10=Original!X10 -> TRUE | Y10: ='Informaciones mensuais'!Y10=Original!Y10 -> TRUE | Z10: ='Informaciones mensuais'!Z10=Original!Z10 -> TRUE | AA10: ='Informaciones mensuais'!AA10=Original!AA10 -> TRUE | AG10: =IFERROR(K10/E10-1,"") ->  | AI10: =ABS(AG10) -> 
A11: 3. | B11: Llegadas confirmadas de los coolers al bottler | C11: ='Informaciones mensuais'!C11=Original!C11 -> FALSE | D11: ='Informaciones mensuais'!D11=Original!D11 -> FALSE | E11: ='Informaciones mensuais'!E11=Original!E11 -> FALSE | F11: ='Informaciones mensuais'!F11=Original!F11 -> FALSE | J11: ='Informaciones mensuais'!J11=Original!J11 -> FALSE | K11: ='Informaciones mensuais'!K11=Original!K11 -> FALSE | L11: ='Informaciones mensuais'!L11=Original!L11 -> FALSE | M11: ='Informaciones mensuais'!M11=Original!M11 -> FALSE | Q11: ='Informaciones mensuais'!Q11=Original!Q11 -> TRUE | R11: ='Informaciones mensuais'!R10=Original!R11 -> TRUE | S11: ='Informaciones mensuais'!S11=Original!S11 -> TRUE | T11: ='Informaciones mensuais'!T11=Original!T11 -> TRUE | X11: ='Informaciones mensuais'!X11=Original!X11 -> TRUE | Y11: ='Informaciones mensuais'!Y11=Original!Y11 -> TRUE | Z11: ='Informaciones mensuais'!Z11=Original!Z11 -> TRUE | AA11: ='Informaciones mensuais'!AA11=Original!AA11 -> TRUE | AE11: =IF(SUM(C11:E11,J11:L11,Q11:S11,X11:Z11)=0,"",SUM(C11:E11,J11:L11,Q11:S11,X11:Z11)) ->  | AH11: =SUM(C11:K11)/SUM(C8:K8)-1 ->  | AI11: =ABS(AH11) -> 
A12: 4. | B12: Instalación equipos total (1ª instalación + equipo adicional + *cambio de equipos + eventos + otros) | C12: ='Informaciones mensuais'!C12=Original!C12 -> FALSE | D12: ='Informaciones mensuais'!D12=Original!D12 -> FALSE | E12: ='Informaciones mensuais'!E12=Original!E12 -> FALSE | F12: ='Informaciones mensuais'!F12=Original!F12 -> FALSE | J12: ='Informaciones mensuais'!J12=Original!J12 -> FALSE | K12: ='Informaciones mensuais'!K12=Original!K12 -> FALSE | L12: ='Informaciones mensuais'!L12=Original!L12 -> FALSE | M12: ='Informaciones mensuais'!M12=Original!M12 -> FALSE | Q12: ='Informaciones mensuais'!Q12=Original!Q12 -> TRUE | R12: ='Informaciones mensuais'!R12=Original!R12 -> TRUE | S12: ='Informaciones mensuais'!S12=Original!S12 -> TRUE | T12: ='Informaciones mensuais'!T12=Original!T12 -> TRUE | X12: ='Informaciones mensuais'!X12=Original!X12 -> TRUE | Y12: ='Informaciones mensuais'!Y12=Original!Y12 -> TRUE | Z12: ='Informaciones mensuais'!Z12=Original!Z12 -> TRUE | AA12: ='Informaciones mensuais'!AA12=Original!AA12 -> TRUE | AE12: =IF(SUM(C12:E12,J12:L12,Q12:S12,X12:Z12)=0,"",SUM(C12:E12,J12:L12,Q12:S12,X12:Z12)) ->  | AG12: =IFERROR(K12/J12-1,"") ->  | AH12: =IFERROR(K12/AVERAGE(C12:Z12)-1,"") ->  | AI12: =(ABS(AG12)+ABS(AH12))/2 -> 
A13: 5. | B13: Retiro total de equipos del mercado (Baja performance + venta cero + cliente cerrado, cerrando o con cooler proprio + contaminación + *cambio de equipos + eventos + otros) | C13: ='Informaciones mensuais'!C13=Original!C13 -> FALSE | D13: ='Informaciones mensuais'!D13=Original!D13 -> FALSE | E13: ='Informaciones mensuais'!E13=Original!E13 -> FALSE | F13: ='Informaciones mensuais'!F13=Original!F13 -> FALSE | J13: ='Informaciones mensuais'!J13=Original!J13 -> FALSE | K13: ='Informaciones mensuais'!K13=Original!K13 -> FALSE | L13: ='Informaciones mensuais'!L13=Original!L13 -> FALSE | M13: ='Informaciones mensuais'!M13=Original!M13 -> FALSE | Q13: ='Informaciones mensuais'!Q13=Original!Q13 -> TRUE | R13: ='Informaciones mensuais'!R13=Original!R13 -> TRUE | S13: ='Informaciones mensuais'!S13=Original!S13 -> TRUE | T13: ='Informaciones mensuais'!T13=Original!T13 -> TRUE | X13: ='Informaciones mensuais'!X13=Original!X13 -> TRUE | Y13: ='Informaciones mensuais'!Y13=Original!Y13 -> TRUE | Z13: ='Informaciones mensuais'!Z13=Original!Z13 -> TRUE | AA13: ='Informaciones mensuais'!AA13=Original!AA13 -> TRUE | AE13: =IF(SUM(C13:E13,J13:L13,Q13:S13,X13:Z13)=0,"",SUM(C13:E13,J13:L13,Q13:S13,X13:Z13)) ->  | AG13: =IFERROR(K13/J13-1,"") ->  | AH13: =IFERROR(K13/AVERAGE(C13:Z13)-1,"") ->  | AI13: =(ABS(AG13)+ABS(AH13))/2 -> 
A14: 6. | B14: Nº de coolers en el mercado con venta cero de 30 días o más | C14: ='Informaciones mensuais'!C14=Original!C14 -> FALSE | D14: ='Informaciones mensuais'!D14=Original!D14 -> FALSE | E14: ='Informaciones mensuais'!E14=Original!E14 -> FALSE | F14: ='Informaciones mensuais'!F14=Original!F14 -> FALSE | J14: ='Informaciones mensuais'!J14=Original!J14 -> FALSE | K14: ='Informaciones mensuais'!K14=Original!K14 -> FALSE | L14: ='Informaciones mensuais'!L14=Original!L14 -> FALSE | M14: ='Informaciones mensuais'!M14=Original!M14 -> FALSE | Q14: ='Informaciones mensuais'!Q14=Original!Q14 -> TRUE | R14: ='Informaciones mensuais'!R14=Original!R14 -> TRUE | S14: ='Informaciones mensuais'!S14=Original!S14 -> TRUE | T14: ='Informaciones mensuais'!T14=Original!T14 -> TRUE | X14: ='Informaciones mensuais'!X14=Original!X14 -> TRUE | Y14: ='Informaciones mensuais'!Y14=Original!Y14 -> TRUE | Z14: ='Informaciones mensuais'!Z14=Original!Z14 -> TRUE | AA14: ='Informaciones mensuais'!AA14=Original!AA14 -> TRUE | AG14: =IFERROR(K14/J14-1,"") ->  | AH14: =IFERROR(K14/AVERAGE(C14:Z14)-1,"") ->  | AI14: =(ABS(AG14)+ABS(AH14))/2 -> 
A15: 7. | B15: Nº de EDFs con conectividad y con información actualizada en los últimos 30 días | C15: ='Informaciones mensuais'!C15=Original!C15 -> FALSE | D15: ='Informaciones mensuais'!D15=Original!D15 -> FALSE | E15: ='Informaciones mensuais'!E15=Original!E15 -> FALSE | F15: ='Informaciones mensuais'!F15=Original!F15 -> FALSE | J15: ='Informaciones mensuais'!J15=Original!J15 -> FALSE | K15: ='Informaciones mensuais'!K15=Original!K15 -> FALSE | L15: ='Informaciones mensuais'!L15=Original!L15 -> FALSE | M15: ='Informaciones mensuais'!M15=Original!M15 -> FALSE | Q15: ='Informaciones mensuais'!Q15=Original!Q15 -> TRUE | R15: ='Informaciones mensuais'!R15=Original!R15 -> TRUE | S15: ='Informaciones mensuais'!S15=Original!S15 -> TRUE | T15: ='Informaciones mensuais'!T15=Original!T15 -> TRUE | X15: ='Informaciones mensuais'!X15=Original!X15 -> TRUE | Y15: ='Informaciones mensuais'!Y15=Original!Y15 -> TRUE | Z15: ='Informaciones mensuais'!Z15=Original!Z15 -> TRUE | AA15: ='Informaciones mensuais'!AA15=Original!AA15 -> TRUE | AG15: =IFERROR(K15/J15-1,"") ->  | AH15: =IFERROR(K15/AVERAGE(C15:Z15)-1,"") ->  | AI15: =(ABS(AG15)+ABS(AH15))/2 -> 
A16: 8. | B16: Nº de EDFs descartados en el mes | C16: =#REF!=Original!C16 ->  | D16: =#REF!=Original!D16 ->  | E16: =#REF!=Original!E16 ->  | F16: =#REF!=Original!F16 ->  | J16: =#REF!=Original!J16 ->  | K16: =#REF!=Original!K16 ->  | L16: =#REF!=Original!L16 ->  | M16: =#REF!=Original!M16 ->  | Q16: =#REF!=Original!Q16 ->  | R16: =#REF!=Original!R16 ->  | S16: =#REF!=Original!S16 ->  | T16: =#REF!=Original!T16 ->  | X16: =#REF!=Original!X16 ->  | Y16: =#REF!=Original!Y16 ->  | Z16: =#REF!=Original!Z16 ->  | AA16: =#REF!=Original!AA16 ->  | AE16: =IF(SUM(C16:E16,J16:L16,Q16:S16,X16:Z16)=0,"",SUM(C16:E16,J16:L16,Q16:S16,X16:Z16)) ->  | AG16: =IFERROR(K16/J16-1,"") ->  | AH16: =IFERROR(K16/AVERAGE(C16:Z16)-1,"") ->  | AI16: =(ABS(AG16)+ABS(AH16))/2 -> 
A18: IMPORTANTE
A19: * Cambio de equipos son cambios comerciales (upsize, downsize de puertas o similares) y cambios técnicos (necesidad diagnosticada por el técnico)
A20: . Cambio de equipos contabilizan tanto en retiro como en instalación porque el cambio de un equipo prevé su retiro para la instalación de otro en su lugar.
B22: Leyenda:
B23: Solo solicitaremos esta información una vez al año (planeado)
B24: Complete los datos mes a mes (realizado)

Sheet Aux (hidden)
A1: -
A2: Jan
A3: Fev
A4: Mar
A5: Abr
A6: Mai
A7: Jun
A8: Jul
A9: Ago
A10: Set
A11: Out
A12: Nov
A13: Dez

Sheet Ejemplo (hidden)
E4: Ejemplo
E7: Procesos 2021 | F7: Ene | G7: Feb | H7: Mar | I7: Abr | J7: May | K7: Jun | L7: Jul | M7: Ago | N7: Sep | O7: Oct | P7: Nov | Q7: Dic | R7: Total
F8: =IF(R10="","",IF(R10<>R9,"Rever plan de llegada de equipos","")) -> 
E9: Pedidos confirmados con el proveedor de EDF | F9: 10000 | G9: 10000 | R9: =IF(SUM(F9:Q9)=0,"",SUM(F9:Q9)) -> 20000
E10: Plan de llegada de los EDFs comprados | F10: 5000 | H10: 5000 | K10: 5000 | O10: 5000 | R10: 20000
D11: 1. | E11: Llegadas confirmadas de los EDFs al bottler | F11: 4500 | R11: 4500
D12: 2. | E12: Instalación equipos total (1ª instalación + equipo adicional + *cambio de equipos + eventos + otros) | F12: 3000 | R12: 3000
D13: 3. | E13: Retiro total de equipos del mercado (Baja performance + venta cero + cliente cerrado, cerrando o con EDF proprio + contaminación + *cambio de equipos + eventos + otros) | F13: 1000 | R13: 1000
D14: 4. | E14: Nº de EDFs en el mercado con venta cero de 30 días o más | F14: 500 | R14: 500
D15: 5. | E15: Total de EDFs monitoreados regularmente por conectividad | F15: 100 | R15: 100
D16: 6. | E16: Bajas de EDFs totales (pérdidas + descarte + otros) | F16: 100 | R16: 100
D18: IMPORTANTE
D19: * Cambio de equipos son cambios comerciales (upsize, downsize de puertas o similares) y cambios técnicos (necesidad diagnosticada por el técnico)
D20: . Cambio de equipos contabilizan tanto en retiro como en instalación porque el cambio de un equipo prevé su retiro para la instalación de otro en su lugar.
E22: Leyenda:
E23: Solo solicitaremos esta información una vez al año (planeado)
E24: Complete los datos mes a mes (realizado)
C27: 2021
